[Event "*** Titled Tuesday Blitz"]
[Site "Chess.com"]
[Date "2020.05.26"]
[Round "9"]
[White "DACF2905"]
[Black "NotFischer"]
[Result "1-0"]
[WhiteElo "2260"]
[BlackElo "2133"]
[TimeControl "180+1"]
[EndTime "11:51:42 PDT"]
[Termination "DACF2905 won by checkmate"]

1. c4 {[%clk 0:03:00.9]} 1... g6 {[%clk 0:02:59.5]} 2. g3 {[%clk 0:03:00.3]}
2... Bg7 {[%clk 0:03:00.4]} 3. Bg2 {[%clk 0:03:00.7]} 3... d6 {[%clk 0:03:01]}
4. Nc3 {[%clk 0:03:00.3]} 4... Nf6 {[%clk 0:03:01.7]} 5. e3 {[%clk 0:03:00.8]}
5... O-O {[%clk 0:03:02.2]} 6. Nge2 {[%clk 0:03:01.4]} 6... c6 {[%clk
0:03:02.6]} 7. d4 {[%clk 0:03:02]} 7... Nbd7 {[%clk 0:03:01.8]} 8. O-O {[%clk
0:03:02.7]} 8... e5 {[%clk 0:03:01.8]} 9. b3 {[%clk 0:03:01.9]} 9... Qc7 {[%clk
0:03:01.6]} 10. Bb2 {[%clk 0:03:01.8]} 10... Re8 {[%clk 0:03:02]} 11. Qc2 {[%clk
0:03:01.7]} 11... a6 {[%clk 0:03:01.9]} 12. Rad1 {[%clk 0:03:00.4]} 12... Rb8
{[%clk 0:02:57.6]} 13. d5 {[%clk 0:03:00.6]} 13... cxd5 {[%clk 0:02:51.3]} 14.
Nxd5 {[%clk 0:03:01.5]} 14... Nxd5 {[%clk 0:02:48.7]} 15. Bxd5 {[%clk
0:03:02.4]} 15... Nf6 {[%clk 0:02:47.4]} 16. Bg2 {[%clk 0:03:02.2]} 16... b5
{[%clk 0:02:41.5]} 17. Ba3 {[%clk 0:02:52.2]} 17... Bf8 {[%clk 0:02:18.8]} 18.
Qd2 {[%clk 0:02:52]} 18... bxc4 {[%clk 0:02:01.1]} 19. Bxd6 {[%clk 0:02:47.7]}
19... Bxd6 {[%clk 0:02:00]} 20. Qxd6 {[%clk 0:02:47.7]} 20... Qxd6 {[%clk
0:02:00.9]} 21. Rxd6 {[%clk 0:02:47.8]} 21... cxb3 {[%clk 0:02:01.8]} 22. Rxf6
{[%clk 0:02:47.7]} 22... bxa2 {[%clk 0:01:56.1]} 23. Nc3 {[%clk 0:02:45.4]}
23... Be6 {[%clk 0:01:27.9]} 24. Ra1 {[%clk 0:02:17.9]} 24... Rb2 {[%clk
0:01:20.3]} 25. Nxa2 {[%clk 0:02:13]} 25... Rxa2 {[%clk 0:00:58]} 26. Rxa2
{[%clk 0:02:12]} 26... Bxa2 {[%clk 0:00:58.9]} 27. Rxa6 {[%clk 0:02:12.5]} 27...
Bc4 {[%clk 0:00:59.3]} 28. Rc6 {[%clk 0:02:10.8]} 28... Bd3 {[%clk 0:00:56.7]}
29. Bd5 {[%clk 0:02:09.5]} 29... Rb8 {[%clk 0:00:44]} 30. e4 {[%clk 0:02:02.5]}
30... Rb1+ {[%clk 0:00:28.5]} 31. Kg2 {[%clk 0:01:59.3]} 31... Bf1+ {[%clk
0:00:28.8]} 32. Kf3 {[%clk 0:01:59.5]} 32... Rd1 {[%clk 0:00:23.8]} 33. Rc3
{[%clk 0:01:51.5]} 33... Kg7 {[%clk 0:00:23]} 34. Ke3 {[%clk 0:01:51.5]} 34...
f5 {[%clk 0:00:20.5]} 35. f3 {[%clk 0:01:51.1]} 35... Re1+ {[%clk 0:00:18.6]}
36. Kf2 {[%clk 0:01:50.2]} 36... Rb1 {[%clk 0:00:15.8]} 37. Rc7+ {[%clk
0:01:49.9]} 37... Kh6 {[%clk 0:00:14.9]} 38. h4 {[%clk 0:01:40.4]} 38... g5
{[%clk 0:00:06.4]} 39. Rc6+ {[%clk 0:01:37.9]} 39... Kg7 {[%clk 0:00:03.5]} 40.
hxg5 {[%clk 0:01:38]} 40... fxe4 {[%clk 0:00:02.9]} 41. Bxe4 {[%clk 0:01:32.9]}
41... Ra1 {[%clk 0:00:03.8]} 42. Rc7+ {[%clk 0:01:31.8]} 42... Kf8 {[%clk
0:00:03.7]} 43. Rxh7 {[%clk 0:01:31.1]} 43... Bc4 {[%clk 0:00:04.3]} 44. Rc7
{[%clk 0:01:30.4]} 44... Ra2+ {[%clk 0:00:04.5]} 45. Kg1 {[%clk 0:01:28.8]}
45... Bf7 {[%clk 0:00:05.4]} 46. g6 {[%clk 0:01:27.8]} 46... Ra1+ {[%clk
0:00:06.3]} 47. Kh2 {[%clk 0:01:27.3]} 47... Ra2+ {[%clk 0:00:06.5]} 48. Kh3
{[%clk 0:01:26.7]} 48... Be6+ {[%clk 0:00:07.1]} 49. Kh4 {[%clk 0:01:25.4]}
49... Rh2+ {[%clk 0:00:06.9]} 50. Kg5 {[%clk 0:01:25.6]} 50... Rg2 {[%clk
0:00:07.3]} 51. g4 {[%clk 0:01:25.8]} 51... Rh2 {[%clk 0:00:07.1]} 52. Kf6
{[%clk 0:01:25.5]} 52... Bxg4 {[%clk 0:00:04]} 53. fxg4 {[%clk 0:01:19]} 53...
Rf2+ {[%clk 0:00:04.5]} 54. Bf5 {[%clk 0:01:19.4]} 54... e4 {[%clk 0:00:03.8]}
55. Rc8# {[%clk 0:01:17.8]} 1-0

[Event "*** Titled Tuesday Blitz"]
[Site "Chess.com"]
[Date "2020.05.26"]
[Round "9"]
[White "diablanni"]
[Black "Larina_Marija"]
[Result "1-0"]
[WhiteElo "2326"]
[BlackElo "2150"]
[TimeControl "180+1"]
[EndTime "11:51:44 PDT"]
[Termination "diablanni won by resignation"]

1. e4 {[%clk 0:03:00]} 1... d5 {[%clk 0:02:59.6]} 2. exd5 {[%clk 0:02:59.5]}
2... Qxd5 {[%clk 0:03:00.5]} 3. Nc3 {[%clk 0:02:58.9]} 3... Qa5 {[%clk 0:03:01]}
4. d4 {[%clk 0:02:56.4]} 4... Nf6 {[%clk 0:03:01.3]} 5. Nf3 {[%clk 0:02:53.1]}
5... Bf5 {[%clk 0:03:01.3]} 6. Bc4 {[%clk 0:02:52.3]} 6... e6 {[%clk 0:03:01.7]}
7. Bd2 {[%clk 0:02:06.7]} 7... c6 {[%clk 0:03:01.4]} 8. Qe2 {[%clk 0:02:01.6]}
8... Be7 {[%clk 0:02:59.7]} 9. Ne5 {[%clk 0:01:59.1]} 9... O-O {[%clk
0:02:47.7]} 10. Nd5 {[%clk 0:01:55.1]} 10... Qd8 {[%clk 0:02:47.3]} 11. Nxe7+
{[%clk 0:01:54.8]} 11... Qxe7 {[%clk 0:02:47.1]} 12. g4 {[%clk 0:01:17]} 12...
Bxc2 {[%clk 0:02:41.9]} 13. a3 {[%clk 0:01:16.3]} 13... Be4 {[%clk 0:02:30.6]}
14. f3 {[%clk 0:01:14.7]} 14... Bd5 {[%clk 0:02:31.1]} 15. Bb4 {[%clk
0:01:11.8]} 15... Qc7 {[%clk 0:02:14.1]} 16. Bxf8 {[%clk 0:01:11.2]} 16... Kxf8
{[%clk 0:02:15]} 17. O-O {[%clk 0:01:05.9]} 17... Nbd7 {[%clk 0:02:12.5]} 18. f4
{[%clk 0:01:04]} 18... Ne4 {[%clk 0:02:10.1]} 19. Bd3 {[%clk 0:00:57.4]} 19...
Nxe5 {[%clk 0:01:53.5]} 20. fxe5 {[%clk 0:00:44.7]} 20... Ng5 {[%clk 0:01:49.6]}
21. h4 {[%clk 0:00:43.9]} 21... Qe7 {[%clk 0:01:23.4]} 22. hxg5 {[%clk
0:00:39.8]} 22... Qxg5 {[%clk 0:01:24.3]} 23. Be4 {[%clk 0:00:37.4]} 23... Bb3
{[%clk 0:01:22]} 24. Rf3 {[%clk 0:00:32.7]} 24... Ba4 {[%clk 0:01:20]} 25. Rh3
{[%clk 0:00:28.4]} 25... h6 {[%clk 0:01:19]} 26. Rh5 {[%clk 0:00:22.8]} 26...
Qf4 {[%clk 0:01:18.4]} 27. Rf1 {[%clk 0:00:20.4]} 27... Qg3+ {[%clk 0:01:18.4]}
28. Bg2 {[%clk 0:00:17]} 28... Qb3 {[%clk 0:01:11.3]} 29. g5 {[%clk 0:00:13]}
29... Bb5 {[%clk 0:01:08.8]} 30. Qf3 {[%clk 0:00:11.4]} 30... Bxf1 {[%clk
0:01:07.4]} 31. Qxb3 {[%clk 0:00:11.2]} 31... b5 {[%clk 0:01:03]} 32. Bxf1
{[%clk 0:00:10.9]} 32... Ke7 {[%clk 0:01:02.8]} 33. gxh6 {[%clk 0:00:11]} 33...
gxh6 {[%clk 0:01:02.7]} 34. Qf3 {[%clk 0:00:10.9]} 34... Rg8+ {[%clk 0:01:02.2]}
35. Kf2 {[%clk 0:00:11.4]} 35... Rg5 {[%clk 0:01:01.7]} 36. Rxh6 {[%clk
0:00:11.2]} 36... Rg7 {[%clk 0:01:01.7]} 37. Rf6 {[%clk 0:00:11.2]} 37... a5
{[%clk 0:01:01.6]} 38. Qxc6 {[%clk 0:00:11.5]} 38... Rg5 {[%clk 0:01:00.1]} 39.
Qc7+ {[%clk 0:00:11.8]} 39... Ke8 {[%clk 0:00:59.6]} 40. Bxb5+ {[%clk
0:00:11.9]} 1-0

[Event "*** Titled Tuesday Blitz"]
[Site "Chess.com"]
[Date "2020.05.26"]
[Round "9"]
[White "Luibov_AN"]
[Black "DishonorOnYourCow"]
[Result "0-1"]
[WhiteElo "2064"]
[BlackElo "2308"]
[TimeControl "180+1"]
[EndTime "11:51:47 PDT"]
[Termination "DishonorOnYourCow won by resignation"]

1. d4 {[%clk 0:03:00.9]} 1... Nf6 {[%clk 0:02:58.6]} 2. Nf3 {[%clk 0:03:00.7]}
2... g6 {[%clk 0:02:58.1]} 3. Bg5 {[%clk 0:03:00.1]} 3... Ne4 {[%clk 0:02:54.2]}
4. Bh4 {[%clk 0:02:58.7]} 4... d5 {[%clk 0:02:52.8]} 5. Nbd2 {[%clk 0:02:57.7]}
5... Bg7 {[%clk 0:02:51.1]} 6. e3 {[%clk 0:02:57.5]} 6... c5 {[%clk 0:02:45.1]}
7. c3 {[%clk 0:02:57.1]} 7... Nxd2 {[%clk 0:02:42.8]} 8. Qxd2 {[%clk 0:02:56.6]}
8... cxd4 {[%clk 0:02:42]} 9. exd4 {[%clk 0:02:55.9]} 9... Nc6 {[%clk
0:02:41.5]} 10. Bd3 {[%clk 0:02:55.3]} 10... O-O {[%clk 0:02:35.6]} 11. O-O
{[%clk 0:02:54.9]} 11... Bg4 {[%clk 0:02:32.9]} 12. Ne1 {[%clk 0:02:39.1]} 12...
Qd7 {[%clk 0:02:23.9]} 13. h3 {[%clk 0:02:36.2]} 13... Bf5 {[%clk 0:02:21.8]}
14. Bb5 {[%clk 0:02:29.9]} 14... a6 {[%clk 0:02:20.7]} 15. Ba4 {[%clk
0:02:29.9]} 15... b5 {[%clk 0:02:18.6]} 16. Bb3 {[%clk 0:02:30.1]} 16... Na5
{[%clk 0:02:13.9]} 17. Bd1 {[%clk 0:02:26.5]} 17... Nc4 {[%clk 0:02:13]} 18. Qc1
{[%clk 0:02:26.3]} 18... Rfc8 {[%clk 0:02:07.8]} 19. Nf3 {[%clk 0:02:10.9]}
19... a5 {[%clk 0:01:44.7]} 20. Re1 {[%clk 0:02:10.8]} 20... Be4 {[%clk
0:01:32.8]} 21. Nd2 {[%clk 0:02:04]} 21... Bh6 {[%clk 0:01:27.4]} 22. Re2 {[%clk
0:01:55.8]} 22... Nxd2 {[%clk 0:01:21.4]} 23. Rxd2 {[%clk 0:01:55.5]} 23... Bxd2
{[%clk 0:01:22.3]} 24. Qxd2 {[%clk 0:01:54.8]} 24... Re8 {[%clk 0:00:58.3]} 25.
Qh6 {[%clk 0:01:48.9]} 25... Qd6 {[%clk 0:00:49.7]} 26. Bg3 {[%clk 0:01:45.8]}
26... Qe6 {[%clk 0:00:42.6]} 27. Be5 {[%clk 0:01:37.7]} 27... f6 {[%clk
0:00:42]} 28. Bg4 {[%clk 0:01:34.5]} 28... Bf5 {[%clk 0:00:37.3]} 29. Bxf5
{[%clk 0:01:30.7]} 29... Qxf5 {[%clk 0:00:38.2]} 30. Bg3 {[%clk 0:01:29.5]}
30... e5 {[%clk 0:00:20.3]} 31. dxe5 {[%clk 0:01:25]} 31... fxe5 {[%clk
0:00:21.2]} 32. Rd1 {[%clk 0:01:24.9]} 32... Rad8 {[%clk 0:00:20.1]} 33. Bh4
{[%clk 0:01:19.3]} 33... Rd7 {[%clk 0:00:20.3]} 34. g4 {[%clk 0:01:15.1]} 34...
Qf4 {[%clk 0:00:17.1]} 35. Bg5 {[%clk 0:01:12.2]} 35... Qf7 {[%clk 0:00:17]} 36.
Qh4 {[%clk 0:01:04.3]} 36... d4 {[%clk 0:00:17]} 37. cxd4 {[%clk 0:00:59.9]}
37... exd4 {[%clk 0:00:17.9]} 38. Bf6 {[%clk 0:00:58.1]} 38... d3 {[%clk
0:00:18.4]} 39. a3 {[%clk 0:00:55.9]} 39... d2 {[%clk 0:00:18.6]} 40. g5 {[%clk
0:00:52.3]} 40... Re1+ {[%clk 0:00:18.2]} 41. Kg2 {[%clk 0:00:52.1]} 41... Rxd1
{[%clk 0:00:18]} 42. Qe4 {[%clk 0:00:48.3]} 42... Re1 {[%clk 0:00:14.8]} 43.
Qa8+ {[%clk 0:00:47.7]} 43... Re8 {[%clk 0:00:14.5]} 0-1

[Event "*** Titled Tuesday Blitz"]
[Site "Chess.com"]
[Date "2020.05.26"]
[Round "9"]
[White "sergeikim"]
[Black "Dmitry_Konenkin"]
[Result "1-0"]
[WhiteElo "2401"]
[BlackElo "2252"]
[TimeControl "180+1"]
[EndTime "11:51:50 PDT"]
[Termination "sergeikim won by resignation"]

1. d4 {[%clk 0:03:00.9]} 1... d6 {[%clk 0:02:59.9]} 2. c4 {[%clk 0:03:00.7]}
2... e5 {[%clk 0:03:00]} 3. Nf3 {[%clk 0:02:59.6]} 3... e4 {[%clk 0:02:59.9]} 4.
Ng5 {[%clk 0:02:58.9]} 4... f5 {[%clk 0:02:59.8]} 5. h4 {[%clk 0:02:56.9]} 5...
h6 {[%clk 0:02:57.2]} 6. Nh3 {[%clk 0:02:55.9]} 6... Nf6 {[%clk 0:02:39.2]} 7.
Nf4 {[%clk 0:02:53.5]} 7... Kf7 {[%clk 0:02:31.2]} 8. h5 {[%clk 0:02:52.3]} 8...
Be7 {[%clk 0:02:31]} 9. Nc3 {[%clk 0:02:47]} 9... Re8 {[%clk 0:02:30.8]} 10. Ng6
{[%clk 0:02:36.3]} 10... c6 {[%clk 0:02:20.3]} 11. Bf4 {[%clk 0:02:32.7]} 11...
Be6 {[%clk 0:01:58.9]} 12. e3 {[%clk 0:02:31.7]} 12... Qa5 {[%clk 0:01:54]} 13.
a3 {[%clk 0:02:26.8]} 13... d5 {[%clk 0:01:42.5]} 14. b4 {[%clk 0:02:15.3]}
14... Qd8 {[%clk 0:01:38.8]} 15. c5 {[%clk 0:02:01.8]} 15... Nbd7 {[%clk
0:01:35.4]} 16. Be2 {[%clk 0:01:59.9]} 16... Nh7 {[%clk 0:01:33.7]} 17. b5
{[%clk 0:01:54.7]} 17... Qa5 {[%clk 0:01:29.6]} 18. Qb3 {[%clk 0:01:51]} 18...
Bf6 {[%clk 0:01:17.4]} 19. O-O {[%clk 0:01:45.4]} 19... Nxc5 {[%clk 0:01:16.6]}
20. dxc5 {[%clk 0:01:39.4]} 20... Qxc3 {[%clk 0:01:16.2]} 21. Qa4 {[%clk
0:01:38.3]} 21... Qxa1 {[%clk 0:01:09.1]} 22. Rxa1 {[%clk 0:01:36.4]} 22... Bxa1
{[%clk 0:01:10]} 23. bxc6 {[%clk 0:01:36]} 23... bxc6 {[%clk 0:01:10.3]} 24.
Qxc6 {[%clk 0:01:33.7]} 24... Rad8 {[%clk 0:00:58.5]} 25. Qb7+ {[%clk
0:01:28.3]} 25... Rd7 {[%clk 0:00:58.2]} 26. Qa6 {[%clk 0:01:27.6]} 26... Nf8
{[%clk 0:00:31.4]} 27. c6 {[%clk 0:01:05.9]} 27... Rdd8 {[%clk 0:00:31.7]} 28.
c7 {[%clk 0:01:00]} 28... Rc8 {[%clk 0:00:29.9]} 29. Qxa7 {[%clk 0:00:57.2]}
29... Nxg6 {[%clk 0:00:29.2]} 30. hxg6+ {[%clk 0:00:56.2]} 30... Kxg6 {[%clk
0:00:29.7]} 31. Ba6 {[%clk 0:00:52.9]} 31... Kf7 {[%clk 0:00:27.3]} 32. Bxc8
{[%clk 0:00:50.6]} 32... Rxc8 {[%clk 0:00:28.2]} 33. Qb6 {[%clk 0:00:48.8]}
33... Bf6 {[%clk 0:00:25.1]} 34. a4 {[%clk 0:00:48]} 34... g5 {[%clk 0:00:22.4]}
35. Bd6 {[%clk 0:00:47]} 35... Ra8 {[%clk 0:00:18.8]} 36. a5 {[%clk 0:00:46.3]}
36... Bc8 {[%clk 0:00:19.4]} 37. Qb8 {[%clk 0:00:42.7]} 37... Rxa5 {[%clk
0:00:11.1]} 38. Qxc8 {[%clk 0:00:42.3]} 38... Ra1+ {[%clk 0:00:10.1]} 39. Kh2
{[%clk 0:00:41.5]} 39... Rc1 {[%clk 0:00:10.8]} 40. Qd7+ {[%clk 0:00:39.8]}
40... Kg6 {[%clk 0:00:11.7]} 41. Qe8+ {[%clk 0:00:36.9]} 1-0

[Event "*** Titled Tuesday Blitz"]
[Site "Chess.com"]
[Date "2020.05.26"]
[Round "9"]
[White "emiliocordova"]
[Black "bilelou"]
[Result "1-0"]
[WhiteElo "2736"]
[BlackElo "2530"]
[TimeControl "180+1"]
[EndTime "11:51:53 PDT"]
[Termination "emiliocordova won on time"]

1. d4 {[%clk 0:03:00.9]} 1... Nf6 {[%clk 0:02:59.6]} 2. Nf3 {[%clk 0:02:59.1]}
2... e6 {[%clk 0:02:59.9]} 3. c4 {[%clk 0:02:59.9]} 3... d5 {[%clk 0:02:58.5]}
4. g3 {[%clk 0:02:59.7]} 4... dxc4 {[%clk 0:02:55.5]} 5. Bg2 {[%clk 0:02:58.7]}
5... Bd7 {[%clk 0:02:55.9]} 6. Ne5 {[%clk 0:02:54.9]} 6... Bc6 {[%clk
0:02:56.1]} 7. Nxc6 {[%clk 0:02:54.7]} 7... Nxc6 {[%clk 0:02:57]} 8. e3 {[%clk
0:02:55]} 8... Qd7 {[%clk 0:02:56.4]} 9. O-O {[%clk 0:02:52.5]} 9... Rd8 {[%clk
0:02:56.9]} 10. Qe2 {[%clk 0:02:51.6]} 10... e5 {[%clk 0:02:55.6]} 11. Qxc4
{[%clk 0:02:41.8]} 11... exd4 {[%clk 0:02:52.6]} 12. exd4 {[%clk 0:02:42.3]}
12... Nxd4 {[%clk 0:02:51]} 13. Nc3 {[%clk 0:02:00.5]} 13... c5 {[%clk
0:02:25.4]} 14. Bg5 {[%clk 0:01:48.3]} 14... Be7 {[%clk 0:02:07.2]} 15. Bxf6
{[%clk 0:01:46.4]} 15... Bxf6 {[%clk 0:02:08.1]} 16. Qxc5 {[%clk 0:01:43.6]}
16... b6 {[%clk 0:02:00.1]} 17. Rfe1+ {[%clk 0:01:36.6]} 17... Ne6 {[%clk
0:01:58.4]} 18. Qb4 {[%clk 0:01:25.3]} 18... Be7 {[%clk 0:01:55.7]} 19. Qg4
{[%clk 0:01:23.6]} 19... O-O {[%clk 0:01:54.4]} 20. Rad1 {[%clk 0:01:20.6]}
20... Qc8 {[%clk 0:01:47.4]} 21. Nd5 {[%clk 0:01:19.3]} 21... Rfe8 {[%clk
0:01:43.8]} 22. h4 {[%clk 0:01:16.7]} 22... Kf8 {[%clk 0:01:36.7]} 23. Qf5
{[%clk 0:01:11.9]} 23... Kg8 {[%clk 0:01:10.2]} 24. Be4 {[%clk 0:01:09.9]} 24...
g6 {[%clk 0:01:07.7]} 25. Qe5 {[%clk 0:01:09.8]} 25... Qb8 {[%clk 0:01:05.7]}
26. Qc3 {[%clk 0:00:59.1]} 26... Rc8 {[%clk 0:01:02.2]} 27. Qf3 {[%clk
0:00:55.1]} 27... Kg7 {[%clk 0:00:47.6]} 28. Bb1 {[%clk 0:00:51.8]} 28... Bd8
{[%clk 0:00:32]} 29. h5 {[%clk 0:00:46.4]} 29... Bg5 {[%clk 0:00:31.2]} 30. Qg4
{[%clk 0:00:44.6]} 30... Rcd8 {[%clk 0:00:20.3]} 31. a3 {[%clk 0:00:40.8]} 31...
f5 {[%clk 0:00:16.8]} 32. Qc4 {[%clk 0:00:37.7]} 32... Rc8 {[%clk 0:00:10.8]}
33. Qb5 {[%clk 0:00:37.2]} 33... Qb7 {[%clk 0:00:04.6]} 34. Ba2 {[%clk
0:00:25.8]} 34... Bf6 {[%clk 0:00:04.1]} 35. Nxf6 {[%clk 0:00:25.2]} 35... Kxf6
{[%clk 0:00:04.6]} 36. Qe5+ {[%clk 0:00:21.3]} 1-0

[Event "*** Titled Tuesday Blitz"]
[Site "Chess.com"]
[Date "2020.05.26"]
[Round "9"]
[White "Azoulas1"]
[Black "doctorcristian"]
[Result "0-1"]
[WhiteElo "1998"]
[BlackElo "2301"]
[TimeControl "180+1"]
[EndTime "11:51:53 PDT"]
[Termination "doctorcristian won on time"]

1. e4 {[%clk 0:03:00.9]} 1... c5 {[%clk 0:02:58.4]} 2. Nf3 {[%clk 0:03:00.1]}
2... Nc6 {[%clk 0:02:58.3]} 3. d4 {[%clk 0:02:59.5]} 3... cxd4 {[%clk
0:02:58.2]} 4. Nxd4 {[%clk 0:02:58.8]} 4... g6 {[%clk 0:02:58.2]} 5. c4 {[%clk
0:02:57.3]} 5... Nf6 {[%clk 0:02:56.5]} 6. Nc3 {[%clk 0:02:55.7]} 6... Bg7
{[%clk 0:02:56.4]} 7. Be3 {[%clk 0:02:53.9]} 7... Ng4 {[%clk 0:02:55.9]} 8. Qxg4
{[%clk 0:02:51.3]} 8... Nxd4 {[%clk 0:02:55.4]} 9. Qd1 {[%clk 0:02:50.9]} 9...
Ne6 {[%clk 0:02:55.9]} 10. Rc1 {[%clk 0:02:47.7]} 10... Qa5 {[%clk 0:02:53.9]}
11. Be2 {[%clk 0:02:42.8]} 11... b6 {[%clk 0:02:52.7]} 12. O-O {[%clk
0:02:41.2]} 12... Bb7 {[%clk 0:02:52.2]} 13. Nd5 {[%clk 0:02:36]} 13... Bxb2
{[%clk 0:02:41.3]} 14. Rc2 {[%clk 0:02:34.1]} 14... Bg7 {[%clk 0:02:39.6]} 15.
f4 {[%clk 0:02:32.1]} 15... Bxd5 {[%clk 0:02:26.7]} 16. cxd5 {[%clk 0:02:29.2]}
16... Nc5 {[%clk 0:02:25.9]} 17. e5 {[%clk 0:02:21.6]} 17... O-O {[%clk
0:02:19.7]} 18. Bf3 {[%clk 0:02:16.2]} 18... d6 {[%clk 0:02:18.4]} 19. Bd4
{[%clk 0:02:07.7]} 19... Qa4 {[%clk 0:02:11]} 20. h4 {[%clk 0:01:36.3]} 20... f5
{[%clk 0:01:49.8]} 21. h5 {[%clk 0:01:27.7]} 21... Rac8 {[%clk 0:01:46]} 22.
hxg6 {[%clk 0:01:25.3]} 22... hxg6 {[%clk 0:01:45]} 23. g4 {[%clk 0:00:54.9]}
23... Rcd8 {[%clk 0:01:30.2]} 24. gxf5 {[%clk 0:00:27.7]} 24... dxe5 {[%clk
0:01:29.9]} 25. Bxe5 {[%clk 0:00:21.5]} 25... Bxe5 {[%clk 0:01:28.4]} 26. fxe5
{[%clk 0:00:20]} 26... Rxf5 {[%clk 0:01:28]} 27. Rg2 {[%clk 0:00:18.8]} 27...
Qxd1 {[%clk 0:01:26]} 28. Bxd1 {[%clk 0:00:17]} 28... Rxf1+ {[%clk 0:01:24.2]}
29. Kxf1 {[%clk 0:00:16.7]} 29... Rxd5 {[%clk 0:01:23.2]} 30. Rxg6+ {[%clk
0:00:14.8]} 30... Kf7 {[%clk 0:01:16.4]} 31. Bh5 {[%clk 0:00:13.3]} 31... Rxe5
{[%clk 0:01:16.1]} 32. Rg5+ {[%clk 0:00:12.8]} 32... Kf6 {[%clk 0:01:15.9]} 33.
Rg6+ {[%clk 0:00:12.1]} 33... Kf5 {[%clk 0:01:15.9]} 34. Rg7 {[%clk 0:00:10.4]}
34... Ke4 {[%clk 0:01:14.9]} 35. Bg6+ {[%clk 0:00:07.5]} 35... Kd4 {[%clk
0:01:14.4]} 36. Bb1 {[%clk 0:00:07]} 36... Kc3 {[%clk 0:01:13.3]} 37. Rf7 {[%clk
0:00:05.8]} 37... Kb2 {[%clk 0:01:12.8]} 38. Bf5 {[%clk 0:00:05.1]} 38... Kxa2
{[%clk 0:01:12.5]} 39. Bc8 {[%clk 0:00:04.6]} 39... Kb2 {[%clk 0:01:11.8]} 40.
Kf2 {[%clk 0:00:04.3]} 40... Kc3 {[%clk 0:01:11.7]} 41. Kf3 {[%clk 0:00:03.9]}
41... a5 {[%clk 0:01:11.4]} 42. Kf4 {[%clk 0:00:03.8]} 42... Nd3+ {[%clk
0:01:11.2]} 43. Kf3 {[%clk 0:00:02.6]} 43... a4 {[%clk 0:01:10.1]} 0-1

[Event "*** Titled Tuesday Blitz"]
[Site "Chess.com"]
[Date "2020.05.26"]
[Round "9"]
[White "Zmeeed63"]
[Black "manmanlai1"]
[Result "0-1"]
[WhiteElo "2228"]
[BlackElo "2354"]
[TimeControl "180+1"]
[EndTime "11:51:54 PDT"]
[Termination "manmanlai1 won on time"]

1. d4 {[%clk 0:03:00.9]} 1... d5 {[%clk 0:02:57.8]} 2. c4 {[%clk 0:03:00.3]}
2... e6 {[%clk 0:02:55.6]} 3. Nc3 {[%clk 0:03:00.8]} 3... Bb4 {[%clk 0:02:54.2]}
4. Nf3 {[%clk 0:02:42.5]} 4... Nf6 {[%clk 0:02:53.3]} 5. Bg5 {[%clk 0:02:40.7]}
5... dxc4 {[%clk 0:02:51.9]} 6. e3 {[%clk 0:02:39.1]} 6... b5 {[%clk 0:02:41.7]}
7. a4 {[%clk 0:02:33.7]} 7... c6 {[%clk 0:02:41]} 8. Be2 {[%clk 0:01:44]} 8...
Qb6 {[%clk 0:02:37.6]} 9. O-O {[%clk 0:01:40.1]} 9... Nbd7 {[%clk 0:02:37]} 10.
Ne5 {[%clk 0:01:34.7]} 10... Nxe5 {[%clk 0:02:34]} 11. dxe5 {[%clk 0:01:35.6]}
11... Nd7 {[%clk 0:02:34.3]} 12. a5 {[%clk 0:01:19.3]} 12... Qc7 {[%clk
0:02:25.4]} 13. f4 {[%clk 0:01:11]} 13... Bxa5 {[%clk 0:02:19.8]} 14. Ne4 {[%clk
0:01:01.6]} 14... Bb4 {[%clk 0:02:12]} 15. Bh5 {[%clk 0:00:48.9]} 15... h6
{[%clk 0:02:01.1]} 16. Nd6+ {[%clk 0:00:31.3]} 16... Bxd6 {[%clk 0:01:58.6]} 17.
exd6 {[%clk 0:00:32.2]} 17... Qb6 {[%clk 0:01:58.7]} 18. Be7 {[%clk 0:00:32.4]}
18... g6 {[%clk 0:01:52.9]} 19. Qg4 {[%clk 0:00:19.8]} 19... Rg8 {[%clk
0:01:17.2]} 20. f5 {[%clk 0:00:13.7]} 20... exf5 {[%clk 0:01:08.9]} 21. Rxf5
{[%clk 0:00:13.2]} 21... Qxe3+ {[%clk 0:00:59.9]} 22. Kh1 {[%clk 0:00:11.3]}
22... Ne5 {[%clk 0:00:53.7]} 23. Rxe5 {[%clk 0:00:06.1]} 23... Qxe5 {[%clk
0:00:48.6]} 24. Qh4 {[%clk 0:00:04.9]} 24... gxh5 {[%clk 0:00:42]} 25. Re1
{[%clk 0:00:03]} 25... Rg4 {[%clk 0:00:20.4]} 26. Qf2 {[%clk 0:00:02]} 26... Re4
{[%clk 0:00:15.2]} 27. Rf1 {[%clk 0:00:02.2]} 27... Be6 {[%clk 0:00:13.8]} 28.
Qf3 {[%clk 0:00:01.6]} 28... Kd7 {[%clk 0:00:13]} 29. Qa3 {[%clk 0:00:01.2]}
29... a5 {[%clk 0:00:12]} 0-1